bitfinex/quotes_ETHUSD_20250323
["timestamp","ask_amount","ask_price","bid_price","bid_amount"]
[1742763022919,8.24600815,2002.2,2001.8,4.99547]
[1742763023442,13.24071815,2002.2,2001.8,4.99547]
[1742763023629,8.24600815,2002.2,2001.8,4.99547]
[1742763024133,8.24600815,2002.2,2001.7,4.99573]
[1742763024134,9.60185,2002.1,2001.7,4.99573]
[1742763024343,4.99511,2002.0,2001.6,4.9959]
[1742763024728,4.99511,2002.0,2001.7,4.99573]
[1742763025227,10.56838192,2002.1,2001.7,9.99128]
[1742763025427,9.60177,2002.1,2001.7,9.99128]
[1742763026236,4.607,2002.1,2001.8,4.99549]
[1742763026460,4.607,2002.1,2001.8,5.46446073]
[1742763026911,4.607,2002.1,2001.8,10.45985073]
[1742763027337,4.607,2002.1,2001.8,9.99079]
[1742763029040,4.607,2002.1,2001.8,4.99539]
[1742763031545,0.22217832,2002.0,2001.8,4.99539]
[1742763039041,0.22217832,2002.0,2001.7,5.81653]
[1742763039246,0.22217832,2002.0,2001.7,4.99558]
[1742763039836,0.22217832,2002.0,2001.8,0.46887888]
[1742763040645,0.22217832,2002.0,2001.7,9.99115]
[1742763042547,0.22217832,2002.0,2001.8,0.4688992]
[1742763043766,0.22217832,2002.0,2001.7,4.99557]
[1742763046067,0.22217832,2002.0,2001.8,0.46897175]
[1742763046769,0.22217832,2002.0,2001.7,4.99557]
[1742763047565,8.6517163,2002.0,2001.6,4.99597]
[1742763048262,8.6517163,2002.0,2001.7,0.469033]
[1742763049375,13.6469163,2002.0,2001.7,0.469033]
[1742763049680,13.6469163,2002.0,2001.6,4.99597]
[1742763049880,8.6517163,2002.0,2001.6,4.99597]
[1742763051171,8.6517163,2002.0,2001.7,0.46906178]
[1742763052188,2.55871041,2001.9,2001.5,4.99623]
[1742763052471,2.55871041,2001.9,2001.4,4.99637]
[1742763052472,6.99100307,2001.8,2001.4,4.99637]
[1742763052632,11.98670307,2001.8,2001.4,4.99637]
[1742763052849,6.99100307,2001.8,2001.4,4.99637]
[1742763053182,11.98670307,2001.8,2001.5,0.46915304]
[1742763053390,1.27703052,2001.7,2001.5,0.46915304]
[1742763053594,0.2193125,2001.6,2001.5,0.46915304]
[1742763053885,6.77070832,2001.8,2001.5,0.46915304]
[1742763054045,0.2193125,2001.6,2001.5,0.46915304]
[1742763054402,0.21857462,2001.6,2001.5,0.46915304]
[1742763054548,6.77070832,2001.8,2001.5,0.46915304]
[1742763054746,0.21884417,2001.7,2001.4,4.99636]
[1742763054973,0.17251438,2001.7,2001.4,4.99636]
[1742763067191,5.16828438,2001.7,2001.4,0.55]
[1742763067388,5.16828438,2001.7,2001.3,10.81012]
[1742763067588,5.16828438,2001.7,2001.3,7.58860283]
[1742763067805,5.16834438,2001.7,2001.4,0.46833154]
[1742763068512,10.16429438,2001.7,2001.4,0.46833154]
[1742763068679,10.16429438,2001.7,2001.3,5.81338]
[1742763069319,4.99603,2001.6,2001.3,5.81338]
[1742763069516,0.21431249,2001.5,2001.3,5.81338]
[1742763070202,0.21431249,2001.5,2001.3,0.8168]
[1742763071620,0.21431249,2001.5,2001.3,4.99671]
[1742763071915,0.21431249,2001.5,2001.2,9.99358]
[1742763072108,0.21431249,2001.5,2001.2,11.30663883]
[1742763073115,0.21431249,2001.5,2001.3,4.99671]
[1742763073287,0.21431249,2001.5,2001.3,5.46506272]
[1742763073621,11.37893832,2001.7,2001.3,5.46506272]
[1742763073819,0.21432876,2001.6,2001.3,5.46506272]
[1742763074025,11.37893832,2001.7,2001.3,5.46506272]
[1742763074315,13.01638315,2001.7,2001.3,4.99671]
[1742763074516,0.21432876,2001.6,2001.3,4.99671]
[1742763074820,16.37490832,2001.7,2001.3,4.99671]
[1742763075024,0.21432876,2001.6,2001.3,4.9965]
[1742763075225,0.21432876,2001.6,2001.3,5.7984]
[1742763075393,9.60382,2001.7,2001.3,10.79505]
[1742763075593,0.21451874,2001.6,2001.3,10.79505]
[1742763075924,0.21424917,2001.5,2001.3,10.79505]
[1742763076124,9.60382,2001.7,2001.3,7.11141583]
[1742763076304,0.21451874,2001.6,2001.3,5.7984]
[1742763076621,9.60382,2001.7,2001.4,4.99642]
[1742763076622,4.608,2001.7,2001.4,4.99642]
[1742763076821,0.21439209,2001.6,2001.5,4.99625]
[1742763076985,4.608,2001.7,2001.5,4.99625]
[1742763077189,0.21445542,2001.6,2001.5,4.99625]
[1742763077726,4.608,2001.7,2001.4,4.99638]
[1742763078029,0.21451874,2001.6,2001.3,5.79862]
[1742763078197,0.21451874,2001.6,2001.1,0.01]
[1742763078198,6.77170832,2001.4,2001.1,0.01]
[1742763078397,6.98380458,2001.3,2001.1,0.01]
[1742763078705,5.20869626,2001.3,2001.1,0.01]
[1742763078893,6.98380458,2001.3,2001.1,0.01]
[1742763079090,7.7894125,2001.3,2001.1,0.01]
[1742763079295,4.997,2001.2,2001.1,0.01]
[1742763079496,6.98224998,2001.2,2001.1,0.01]
[1742763079901,5.20714166,2001.2,2001.1,0.01]
[1742763080429,8.61964381,2001.2,2001.1,0.01]
[1742763081422,1.84753549,2001.2,2001.1,0.01]
[1742763081691,6.98224998,2001.2,2001.1,0.01]
[1742763084432,9.98224998,2001.2,2001.1,0.01]
[1742763084636,37.62324998,2001.2,2001.1,0.01]
[1742763102356,39.3983583,2001.2,2001.1,0.01]
[1742763106036,39.3983583,2001.2,2001.1,1e-05]
[1742763128500,35.84814166,2001.2,2001.1,1e-05]
[1742763128660,39.23324998,2001.2,2001.1,0.79671]
[1742763129108,42.23324998,2001.2,2001.1,0.79671]
[1742763129305,39.23324998,2001.2,2001.1,0.79671]
[1742763129590,42.23324998,2001.2,2001.1,0.79671]
[1742763131298,40.45814166,2001.2,2001.1,0.79671]
[1742763131497,42.23324998,2001.2,2001.1,0.79671]
[1742763134893,42.23324998,2001.2,2001.1,1e-05]
[1742763135263,44.0083583,2001.2,2001.1,1e-05]
[1742763137296,42.23324998,2001.2,2001.1,1e-05]
[1742763143507,37.62324998,2001.2,2001.1,1e-05]
[1742763143710,42.23324998,2001.2,2001.1,1e-05]
[1742763144201,37.62324998,2001.2,2001.1,1e-05]
[1742763144374,42.23324998,2001.2,2001.1,1e-05]
[1742763147019,37.62324998,2001.2,2001.1,1e-05]
[1742763147224,42.23324998,2001.2,2001.1,1e-05]
[1742763147379,37.62324998,2001.2,2001.1,1e-05]
[1742763147702,42.23324998,2001.2,2001.1,1e-05]
[1742763149182,44.0083583,2001.2,2001.1,1e-05]
[1742763150412,42.23324998,2001.2,2001.1,1e-05]
[1742763150815,44.0083583,2001.2,2001.1,1e-05]
[1742763151111,42.23324998,2001.2,2001.1,1e-05]
[1742763151691,44.0083583,2001.2,2001.1,1e-05]
[1742763152213,42.23324998,2001.2,2001.1,1e-05]
[1742763154930,44.0083583,2001.2,2001.1,1e-05]
[1742763155131,42.23324998,2001.2,2001.1,1e-05]
[1742763155302,44.0083583,2001.2,2001.1,1e-05]
[1742763157324,42.23324998,2001.2,2001.1,1e-05]
[1742763157822,44.0083583,2001.2,2001.1,1e-05]
[1742763164233,42.23324998,2001.2,2001.1,1e-05]
[1742763166997,37.62324998,2001.2,2001.1,1e-05]
[1742763167199,42.23324998,2001.2,2001.1,1e-05]
[1742763167541,37.62324998,2001.2,2001.1,1e-05]
[1742763167713,42.23324998,2001.2,2001.1,1e-05]
[1742763172941,37.62324998,2001.2,2001.1,1e-05]
[1742763173146,42.23324998,2001.2,2001.1,1e-05]
[1742763178240,37.62324998,2001.2,2001.1,1e-05]
[1742763178413,42.23324998,2001.2,2001.1,1e-05]
[1742763188753,44.0083583,2001.2,2001.1,1e-05]
[1742763205471,44.5583583,2001.2,2001.1,1e-05]
[1742763205774,44.5583583,2001.2,2000.1,0.7953]
[1742763205775,4.99909,2000.4,2000.1,0.7953]
[1742763205942,0.18813866,2000.3,2000.1,0.7953]
[1742763206142,11.38419832,2000.4,2000.1,0.7953]
[1742763206343,0.18813866,2000.3,2000.2,0.7953]
[1742763206566,6.38510832,2000.4,2000.2,0.7953]
[1742763206772,0.18813866,2000.3,2000.2,0.7953]
[1742763206975,4.61,2000.4,2000.2,0.7953]
[1742763207163,0.18813866,2000.3,2000.2,0.7953]
[1742763207585,4.61,2000.4,2000.2,0.7953]
[1742763207750,0.18813866,2000.3,2000.2,0.7953]
[1742763207944,4.61,2000.4,2000.2,0.7953]
[1742763208151,0.18813866,2000.3,2000.2,0.7953]
[1742763208370,4.61,2000.4,2000.2,0.7953]
[1742763208569,0.18813866,2000.3,2000.2,0.7953]
[1742763208775,4.61,2000.4,2000.2,0.7953]
[1742763208983,0.18813866,2000.3,2000.2,1.07949]
[1742763209173,0.18813866,2000.3,2000.2,6.07899]
[1742763209367,4.61,2000.4,2000.2,6.07899]
[1742763209548,4.61,2000.4,2000.3,0.7953]
[1742763209750,4.61,2000.4,2000.3,1.982689]
[1742763215986,4.79817078,2000.4,2000.3,1.982689]
[1742763216186,4.79817078,2000.4,2000.3,0.7953]
[1742763230267,4.79817078,2000.4,2000.3,5.79455]
[1742763233812,0.18817078,2000.4,2000.3,5.79455]
[1742763234016,0.18817078,2000.4,2000.3,6.34455]
[1742763234198,30.654,2000.7,2000.6,5.8153]
[1742763234399,30.82334089,2000.7,2000.6,5.8153]
[1742763234907,30.82334089,2000.7,2000.6,0.8168]
[1742763239025,3.16934089,2000.7,2000.6,0.8168]
[1742763243897,0.16934089,2000.7,2000.6,0.8168]
[1742763247524,0.16934089,2000.7,2000.4,4.99888]
[1742763247736,0.16934089,2000.7,2000.5,0.8009]
[1742763248433,1.94444921,2000.7,2000.5,0.8009]
[1742763250129,6.94269921,2000.7,2000.5,0.8009]
[1742763250333,4.9985,2000.6,2000.3,5.80012]
[1742763250633,0.16959594,2000.5,2000.3,5.80012]
[1742763251754,0.16932613,2000.4,2000.3,5.80012]
[1742763251934,6.77335832,2000.7,2000.3,5.80012]
[1742763252104,0.16986572,2000.6,2000.3,5.80012]
[1742763254435,0.16986572,2000.6,2000.4,5.79978]
[1742763255838,0.16986572,2000.6,2000.4,0.8009]
[1742763256533,0.16986572,2000.6,2000.3,4.99909]
[1742763256747,6.18106549,2000.6,2000.3,4.99909]
[1742763258440,1.18254549,2000.6,2000.3,4.99909]
[1742763263747,6.18104549,2000.6,2000.3,4.99909]
[1742763264046,7.93748687,2000.6,2000.2,5.80031]
[1742763265342,7.93748687,2000.6,2000.3,4.99924]
[1742763265343,6.18104549,2000.6,2000.3,4.99924]
[1742763268352,11.17972549,2000.6,2000.2,5.80031]
[1742763268541,12.95487381,2000.6,2000.2,5.80031]
[1742763268747,7.95615381,2000.6,2000.2,5.80031]
[1742763269655,7.95615381,2000.6,2000.2,10.7997]
[1742763270156,6.18104549,2000.6,2000.2,10.7997]
[1742763270335,9.71259519,2000.6,2000.2,10.7997]
[1742763272260,9.71259519,2000.6,2000.2,5.80029]
[1742763274274,14.71129519,2000.6,2000.2,5.80029]
[1742763276167,1.77510832,2000.5,2000.2,5.80029]
[1742763276333,0.16197296,2000.4,2000.2,5.80029]
[1742763276533,12.78498809,2000.6,2000.2,5.80029]
[1742763276733,0.16224277,2000.5,2000.2,5.80029]
[1742763279165,0.16224277,2000.5,2000.4,5.817]
[1742763279334,7.609,2000.7,2000.5,4.99871]
[1742763279534,0.16230065,2000.6,2000.5,4.99871]
[1742763279971,0.16230065,2000.6,2000.4,5.817]
[1742763282567,1.02177931,2000.5,2000.4,5.817]
[1742763282866,1.18366022,2000.5,2000.4,5.817]
[1742763284878,0.16188091,2000.5,2000.4,5.817]
[1742763285041,0.16188091,2000.5,2000.4,7.13113483]
[1742763285259,3.0,2000.7,2000.5,4.9987]
[1742763285820,3.98099631,2000.7,2000.5,4.9987]
[1742763290999,0.15471767,2000.6,2000.5,4.9987]
[1742763291497,0.15471767,2000.6,2000.4,5.817]
[1742763298703,0.15471767,2000.6,2000.3,0.55]
[1742763298704,5.15331767,2000.6,2000.3,0.55]
[1742763302316,5.15331767,2000.6,2000.3,5.54918]
[1742763302609,5.15331767,2000.6,2000.3,4.99918]
[1742763302926,10.15204767,2000.6,2000.3,0.55]
[1742763303214,5.15331767,2000.6,2000.3,0.55]
[1742763303716,5.15331767,2000.6,2000.2,5.80924]
[1742763304715,5.15331767,2000.6,2000.2,10.80864]
[1742763304917,5.15331767,2000.6,2000.2,12.12201483]
[1742763305914,5.15331767,2000.6,2000.2,7.12261483]
[1742763308717,5.15331767,2000.6,2000.2,12.12196483]
[1742763308915,5.15331767,2000.6,2000.2,7.12261483]
[1742763309717,5.15331767,2000.6,2000.2,12.12199483]
[1742763311498,5.15331767,2000.6,2000.2,7.12261483]
[1742763311998,5.15331767,2000.6,2000.2,12.12197483]
[1742763312524,5.15331767,2000.6,2000.3,4.99923]
[1742763313424,0.15471767,2000.6,2000.3,4.99923]
[1742763314349,0.15471767,2000.6,2000.2,7.12261483]
[1742763314350,6.92832599,2000.6,2000.2,7.12261483]
[1742763314521,6.77422832,2000.4,2000.0,4.99999]
[1742763314817,0.14328764,2000.3,2000.1,4.99972]
[1742763315024,4.99912,2000.4,2000.1,4.99972]
[1742763315226,0.14328764,2000.3,2000.1,4.99972]
[1742763315402,4.99912,2000.4,2000.1,4.99972]
[1742763315721,0.14328764,2000.3,2000.1,4.99972]
[1742763315922,0.14328764,2000.3,2000.2,5.5495]
[1742763316126,12.60754,2000.6,2000.2,10.549]
[1742763316629,0.14382732,2000.5,2000.2,10.549]
[1742763316819,1.01644304,2000.3,2000.2,5.5495]
[1742763317028,1.15973068,2000.3,2000.2,5.5495]
[1742763318727,1.15973068,2000.3,2000.1,5.80889]
[1742763318926,1.15973068,2000.3,2000.1,4.99969]
[1742763319437,1.15973068,2000.3,2000.0,4.99991]
[1742763320630,1.15973068,2000.3,2000.0,9.99974]
[1742763322430,1.15973068,2000.3,2000.0,4.99983]
[1742763322631,1.15973068,2000.3,2000.0,9.99964]
[1742763326638,1.15973068,2000.3,2000.0,4.99981]
[1742763331954,1.15973068,2000.3,2000.0,9.99971]
[1742763334432,1.15973068,2000.3,2000.0,4.99981]
[1742763335712,1.15973068,2000.3,2000.0,9.99965]
[1742763337442,1.15973068,2000.3,2000.1,4.99971]
[1742763338911,1.15973068,2000.3,2000.0,4.99981]
[1742763339640,1.15973068,2000.3,2000.1,4.99973]
[1742763343137,1.15973068,2000.3,2000.1,6.26298424]
[1742763343440,1.15973068,2000.3,2000.2,5.8265]
[1742763344135,1.15973068,2000.3,2000.2,4.9995]
[1742763344351,1.15973068,2000.3,2000.0,4.99996]
[1742763344713,1.15973068,2000.3,1999.9,5.00024]
[1742763344910,12.07442475,2000.3,1999.9,5.00024]
[1742763345408,12.07436475,2000.3,1999.9,5.00024]
[1742763345629,7.07497475,2000.3,1999.9,5.00024]
[1742763346153,4.99951,2000.2,1999.9,5.00024]
[1742763346516,0.1405052,2000.1,1999.9,5.00024]
[1742763347125,4.99951,2000.2,1999.9,5.00024]
[1742763347324,0.1402352,2000.0,1999.9,5.00024]
[1742763347551,4.99951,2000.2,1999.9,5.00024]
[1742763347754,0.1402352,2000.0,1999.9,5.00024]
[1742763348455,4.99951,2000.2,1999.9,5.00024]
[1742763348655,0.14044179,2000.1,1999.9,5.00024]
[1742763348855,4.99951,2000.2,1999.9,5.00024]
[1742763349034,0.14044179,2000.1,1999.9,5.00024]
[1742763349371,4.99951,2000.2,1999.9,5.00024]
[1742763349554,0.14017179,2000.0,1999.9,5.00024]
[1742763349924,4.99951,2000.2,1999.9,5.00024]
[1742763350126,0.14017179,2000.0,1999.9,5.00024]
[1742763350326,4.99951,2000.2,1999.9,5.00024]
[1742763350557,0.14017179,2000.0,1999.9,5.00024]
[1742763350726,4.99951,2000.2,1999.9,5.00024]
[1742763350926,0.14017179,2000.0,1999.9,5.00024]
[1742763351330,4.99951,2000.2,1999.9,5.00024]
[1742763351828,0.14044179,2000.1,1999.9,5.00024]
[1742763352028,4.99951,2000.2,1999.9,5.00024]
[1742763352228,0.14044179,2000.1,1999.9,5.00024]
[1742763352451,0.14044179,2000.1,1999.8,5.82747]
[1742763352642,4.99977,2000.1,1999.7,5.00072]
[1742763352938,0.14017179,2000.0,1999.7,5.00072]
[1742763356049,10.14046179,2000.0,1999.5,6.77611832]
[1742763356357,10.14044179,2000.0,1999.6,5.00094]
[1742763356739,1.00293654,1999.8,1999.6,5.00094]
[1742763356960,1.00293654,1999.8,1999.6,10.00176]
[1742763357149,0.13882601,1999.7,1999.6,5.00082]
[1742763358857,0.13882601,1999.7,1999.6,6.77592832]
[1742763359059,4.99976,2000.1,1999.7,5.00057]
[1742763359264,0.13976298,2000.0,1999.7,6.77564832]
[1742763359465,0.13976298,2000.0,1999.8,5.00046]
[1742763360245,1.00834861,2000.0,1999.8,5.00046]
[1742763360445,0.13845476,1999.9,1999.7,6.77564832]
[1742763360664,0.13845476,1999.9,1999.7,11.77622832]
[1742763360866,0.13845476,1999.9,1999.8,5.0005]
[1742763366769,0.13845476,1999.9,1999.8,5.82320167]
[1742763367340,0.13845476,1999.9,1999.8,7.54830832]
[1742763367540,0.13845476,1999.9,1999.8,5.7732]
[1742763368339,0.13845476,1999.9,1999.8,5.82319956]
[1742763368839,0.13845476,1999.9,1999.8,8.80819311]
[1742763369540,0.13845476,1999.9,1999.8,7.03308479]
[1742763370852,0.13845476,1999.9,1999.8,6.26038479]
[1742763371669,0.13845476,1999.9,1999.7,5.77324]
[1742763371892,0.13845476,1999.9,1999.7,10.00111]
[1742763372477,0.13845476,1999.9,1999.7,5.00054]
[1742763379405,0.13845476,1999.9,1999.6,10.00181]
[1742763379558,0.13845476,1999.9,1999.6,11.77691832]
[1742763379758,0.13845476,1999.9,1999.6,6.77594832]
[1742763380151,0.13845476,1999.9,1999.6,11.77679832]
[1742763380489,0.13845476,1999.9,1999.6,6.77594832]
[1742763380960,0.13845476,1999.9,1999.6,5.00084]
[1742763383815,8.02867142,1999.9,1999.4,5.00145]
[1742763383967,9.61059,1999.8,1999.4,5.00145]
[1742763384296,5.13973042,1999.7,1999.3,7.57392832]
[1742763384464,5.13973042,1999.7,1999.3,5.00172]
[1742763385187,5.0011,1999.6,1999.2,5.00188]
[1742763385385,1.01718867,1999.5,1999.4,5.00132]
[1742763385696,0.13833033,1999.5,1999.4,6.82643972]
[1742763385865,0.13833033,1999.5,1999.4,6.77642832]
[1742763386066,4.61,1999.8,1999.5,10.00209]
[1742763386395,12.61026,1999.9,1999.6,5.00094]
[1742763386909,14.04879683,1999.9,1999.6,5.00094]
[1742763387404,0.97759959,1999.8,1999.6,5.00094]
[1742763391392,5.00108,1999.6,1999.2,5.00176]
[1742763392074,6.77609832,1999.7,1999.2,6.77686832]
[1742763392266,11.77707832,1999.7,1999.3,5.00159]
[1742763392681,5.00102,1999.6,1999.3,5.00159]
[1742763396005,0.13534331,1999.5,1999.3,5.00159]
[1742763396394,1.15672823,1999.5,1999.2,6.77701832]
[1742763398505,1.15672823,1999.5,1999.2,11.77889832]
[1742763399004,1.15672823,1999.5,1999.2,6.77698832]
[1742763399505,1.15672823,1999.5,1999.2,5.00188]
[1742763400308,1.15672823,1999.5,1999.2,6.77698832]
[1742763400813,1.15672823,1999.5,1999.2,11.77883832]
[1742763401106,1.15672823,1999.5,1999.2,6.77695832]
[1742763402111,1.15672823,1999.5,1999.2,5.00185]
[1742763403209,1.15672823,1999.5,1999.2,10.00367]
[1742763403390,1.15672823,1999.5,1999.2,11.77877832]
[1742763404010,1.15672823,1999.5,1999.2,6.77692832]
[1742763405111,1.15672823,1999.5,1999.2,11.77876832]
[1742763405917,1.15672823,1999.5,1999.2,10.00366]
[1742763406075,1.15672823,1999.5,1999.2,5.00182]
[1742763406816,1.15672823,1999.5,1999.2,6.77692832]
[1742763408310,1.15672823,1999.5,1999.2,5.00182]
[1742763413112,1.15672823,1999.5,1999.2,10.00365]
[1742763414194,1.15672823,1999.5,1999.1,7.57436832]
[1742763414597,1.15672823,1999.5,1999.2,0.46930216]
[1742763415182,1.15672823,1999.5,1999.2,5.47120216]
[1742763416204,1.15672823,1999.5,1999.2,5.0019]
[1742763416928,1.15672823,1999.5,1999.1,7.57436832]
[1742763417118,6.15805823,1999.5,1999.1,7.57436832]
[1742763417288,6.15805823,1999.5,1999.1,12.57642832]
[1742763417489,1.15672823,1999.5,1999.2,5.00189]
[1742763418113,6.15799823,1999.5,1999.2,5.00189]
[1742763418311,5.002,1999.2,1998.8,5.0398474]
[1742763418518,6.77710832,1999.2,1998.8,5.0398474]
[1742763418692,0.12592635,1999.1,1998.8,5.0398474]
[1742763420119,5.12819635,1999.1,1998.8,5.0398474]
[1742763420311,5.00258,1999.0,1998.8,0.0368774]
[1742763420701,0.12456357,1998.9,1998.8,0.0368774]
[1742763421112,6.90242189,1998.9,1998.8,0.0368774]
[1742763421430,5.12731357,1998.9,1998.8,0.0368774]
[1742763422203,0.12456357,1998.9,1998.8,0.0368774]
[1742763422403,0.12456357,1998.9,1998.8,5.0398774]
[1742763422633,0.12456357,1998.9,1998.8,0.0368774]
[1742763422936,1.89967189,1998.9,1998.8,0.0368774]
[1742763423106,7.86180752,1998.9,1998.8,0.0368774]
[1742763423299,10.86180752,1998.9,1998.8,0.0368774]
[1742763424226,38.53280752,1998.9,1998.8,0.0368774]
[1742763425935,1.77510832,1998.7,1998.4,5.004]
[1742763426110,0.12303622,1998.6,1998.4,5.004]
[1742763426314,0.12303622,1998.6,1998.4,4.984]
[1742763426833,0.12303622,1998.6,1998.5,5.81185]
[1742763427027,0.12303622,1998.6,1998.5,7.06894583]
[1742763427223,6.39310832,1998.8,1998.5,0.8081]
[1742763427428,0.12303622,1998.6,1998.5,0.8081]
[1742763427602,11.39611832,1998.8,1998.4,5.00386]
[1742763427809,6.90178489,1998.7,1998.3,5.81235]
[1742763428006,11.90522489,1998.7,1998.3,5.00425]
[1742763428204,13.55754738,1998.7,1998.3,5.00425]
[1742763428436,8.55410738,1998.7,1998.3,5.00425]
[1742763428631,1.01047881,1998.5,1998.3,5.00425]
[1742763429027,0.12055867,1998.4,1998.3,5.00425]
[1742763429341,1.89566699,1998.4,1998.1,5.01475]
[1742763429505,1.77510832,1998.2,1998.1,0.01]
[1742763429709,1.89456878,1998.2,1998.1,0.01]
[1742763429926,0.11946046,1998.2,1998.1,0.01]
[1742763430244,9.89906878,1998.2,1998.1,0.01]
[1742763431037,8.12396046,1998.2,1998.1,0.01]
[1742763431215,9.73384156,1998.2,1998.1,0.01]
[1742763432435,4.72934156,1998.2,1998.1,0.01]
[1742763433325,9.73384156,1998.2,1998.1,0.01]
[1742763434917,10.74261744,1998.2,1998.1,0.01]
[1742763439258,38.42761744,1998.2,1998.1,0.01]
[1742763440661,38.95010936,1998.2,1998.1,0.01]
[1742763443466,41.9206699,1998.2,1998.1,0.01]
[1742763446074,46.5446699,1998.2,1998.1,0.01]
[1742763450881,47.14121464,1998.2,1998.1,0.01]
[1742763451441,47.14121464,1998.2,1997.5,0.00103947]
[1742763451641,11.57310528,1997.6,1997.5,0.00103947]
[1742763451865,16.21310528,1997.6,1997.5,0.00103947]
[1742763452059,16.32502392,1997.6,1997.5,0.00103947]
[1742763452472,16.70170772,1997.6,1997.5,0.00103947]
[1742763452878,19.08234042,1997.6,1997.5,0.00103947]
[1742763453055,20.9828361,1997.6,1997.5,0.00103947]
[1742763453446,21.62466204,1997.6,1997.5,0.00103947]
[1742763454742,13.36896711,1997.6,1997.5,0.00103947]
[1742763455164,18.01496711,1997.6,1997.5,0.00103947]
[1742763455646,13.36896711,1997.6,1997.5,0.00103947]
[1742763455847,45.70896711,1997.6,1997.5,0.00103947]
[1742763456069,41.584686,1997.6,1997.5,0.00103947]
[1742763456270,42.57843991,1997.6,1997.5,0.00103947]
[1742763456475,37.19575611,1997.6,1997.5,0.00103947]
[1742763456779,41.95026043,1997.6,1997.5,0.00103947]
[1742763457678,44.95026043,1997.6,1997.5,0.00103947]
[1742763460882,32.32139144,1997.6,1997.5,0.00103947]
[1742763461083,4.62839144,1997.6,1997.5,0.00103947]
[1742763461277,6.27539144,1997.6,1997.5,0.00103947]
[1742763468398,1.62839144,1997.6,1997.5,0.00103947]
[1742763468600,0.11191864,1997.6,1997.5,0.80513947]
[1742763468795,28.70520856,1997.7,1997.5,6.39254942]
[1742763468980,0.10111732,1997.6,1997.5,6.39254942]
[1742763469167,28.70520856,1997.7,1997.5,6.39254942]
[1742763469373,0.10111732,1997.6,1997.5,0.80513947]
[1742763469573,28.70520856,1997.7,1997.5,0.80513947]
[1742763469797,0.10111732,1997.6,1997.5,0.80513947]
[1742763470001,28.70520856,1997.7,1997.5,0.80513947]
[1742763470203,0.10111732,1997.6,1997.5,0.80513947]
[1742763470382,28.70520856,1997.7,1997.5,0.80513947]
[1742763470580,0.10111732,1997.6,1997.5,0.80513947]
[1742763470781,28.70520856,1997.7,1997.5,0.80513947]
[1742763470991,0.10111732,1997.6,1997.5,0.80513947]
[1742763471174,28.70520856,1997.7,1997.5,0.80513947]
[1742763471374,0.10111732,1997.6,1997.5,0.80513947]
[1742763471575,28.70520856,1997.7,1997.5,0.80513947]
[1742763471903,0.10111732,1997.6,1997.5,0.80513947]
[1742763472204,1.00820856,1997.7,1997.5,0.80513947]
[1742763472503,0.10111732,1997.6,1997.5,0.80513947]
[1742763472878,1.00820856,1997.7,1997.5,0.80513947]
[1742763473076,0.10111732,1997.6,1997.5,0.80513947]
[1742763473394,1.00820856,1997.7,1997.5,5.81130947]
[1742763473583,0.10111732,1997.6,1997.5,6.89307442]
[1742763473783,1.00820856,1997.7,1997.5,6.89307442]
[1742763473983,0.10111732,1997.6,1997.5,6.89307442]
[1742763474184,1.00820856,1997.7,1997.5,6.89307442]
[1742763474519,1.00820856,1997.7,1997.6,5.8061]
[1742763474668,1.00820856,1997.7,1997.6,6.99560744]
[1742763475786,27.697,1997.9,1997.8,0.8001]
[1742763477904,28.67605535,1997.9,1997.8,0.8001]
[1742763481607,28.67605535,1997.9,1997.6,8.77996899]
[1742763482113,28.67605535,1997.9,1997.6,5.8061]
[1742763485387,28.67605535,1997.9,1997.6,0.8001]
[1742763485603,33.68145535,1997.9,1997.6,0.8001]
[1742763485993,0.10297989,1997.8,1997.6,0.8001]
[1742763493033,0.10297989,1997.8,1997.5,0.00103947]
[1742763495229,5.10863989,1997.8,1997.5,0.00103947]
[1742763500139,1.00948176,1997.6,1997.5,0.00103947]
[1742763500539,1.11139038,1997.6,1997.5,0.00103947]
[1742763500737,2.02312242,1997.6,1997.5,0.00103947]
[1742763501429,1.11139038,1997.6,1997.5,0.00103947]
[1742763504355,5.74639038,1997.6,1997.5,0.00103947]
[1742763507375,1.11139038,1997.6,1997.5,0.82983947]
[1742763507678,0.10190862,1997.6,1997.5,8.80995846]
[1742763508203,0.99484215,1997.7,1997.6,6.3848]
[1742763508358,0.99484215,1997.7,1997.6,7.82139585]
[1742763508553,1.09679256,1997.7,1997.6,7.82139585]
[1742763508862,1.09679256,1997.7,1997.6,9.05400337]
[1742763509065,1.09679256,1997.7,1997.6,0.8288]
[1742763509951,1.09679256,1997.7,1997.5,0.00103947]
[1742763511378,1.09679256,1997.7,1997.5,5.00727947]
[1742763513581,1.09679256,1997.7,1997.5,5.00624]
[1742763515886,1.09679256,1997.7,1997.6,5.006]
[1742763516416,1.09679256,1997.7,1997.4,0.82984634]
[1742763516699,6.62641227,1997.7,1997.4,0.00104634]
[1742763517004,0.66264123,1997.6,1997.4,0.00104634]
[1742763517401,5.66875123,1997.6,1997.4,0.00104634]
[1742763518604,10.67497123,1997.6,1997.4,0.00104634]
[1742763520731,5.66875123,1997.6,1997.4,0.00104634]
[1742763521624,3.66264123,1997.6,1997.4,0.00104634]
[1742763521824,8.66873123,1997.6,1997.4,0.00104634]
[1742763529256,3.66264123,1997.6,1997.4,0.00104634]
[1742763529420,3.0,1997.6,1997.5,0.7944]
[1742763531038,1.51851186,1997.7,1997.5,0.7944]
[1742763531541,0.99484215,1997.7,1997.5,0.7944]
[1742763538144,3.0,1997.6,1997.4,0.00104634]
[1742763538325,8.90615122,1997.6,1997.4,0.00104634]
[1742763543538,8.90614122,1997.6,1997.4,0.00104634]
[1742763544127,36.60314122,1997.6,1997.4,0.00104634]
[1742763544648,31.59706122,1997.6,1997.4,0.83084634]
[1742763547250,36.60307122,1997.6,1997.4,0.00104634]
[1742763547441,35.70301,1997.6,1997.4,0.00104634]
[1742763548853,8.00601,1997.6,1997.4,0.00104634]
[1742763550553,3.0,1997.6,1997.4,0.00104634]
[1742763556159,8.00605,1997.6,1997.4,0.00104634]
[1742763559460,9.78921175,1997.6,1997.4,0.00104634]
[1742763559761,37.48621175,1997.6,1997.4,0.00104634]
[1742763562771,35.70305,1997.6,1997.4,0.00104634]
[1742763563290,36.2262733,1997.6,1997.4,0.00104634]
[1742763569678,31.2202233,1997.6,1997.4,0.00104634]
[1742763569881,36.2263133,1997.6,1997.4,0.00104634]